bitfinex-derivatives/quotes_BNBF0:USTF0_20250111
["timestamp","ask_amount","ask_price","bid_price","bid_amount"]
[1736581929290,1.07994597,694.39,692.9,3.189754]
[1736581929888,1.07994597,694.43,692.9,3.189754]
[1736581930888,1.07994597,694.42,692.87,3.189754]
[1736581931787,1.07994597,694.43,692.87,3.189754]
[1736581932681,1.07994597,694.44,692.86,3.189754]
[1736581933589,1.29593516,695.0,692.86,3.189754]
[1736581933590,1.07994597,694.45,692.86,3.189754]
[1736581934791,1.07994597,694.38,693.0,1.29451746]
[1736581935690,1.07994597,694.44,692.9,3.189754]
[1736581935891,1.07994597,694.44,692.89,3.189754]
[1736581936483,1.07994597,694.45,692.89,3.189754]
[1736581936688,1.07994597,694.45,692.87,3.189754]
[1736581937392,1.07994597,694.43,692.87,3.189754]
[1736581939396,1.07994597,694.41,692.84,1.29451746]
[1736581939995,1.07994597,694.4,692.86,1.29451746]
[1736581941890,1.07994597,694.4,692.86,4.14175641]
[1736581942090,1.07994597,694.4,692.87,2.7739444]
[1736581942292,1.07994597,694.4,692.89,0.2886461]
[1736581943001,1.07994597,694.39,692.89,0.2886461]
[1736581943894,1.07994597,694.39,692.89,3.4784001]
[1736581944699,1.07994597,694.32,693.03,1.29451746]
[1736581944900,1.07994597,694.32,693.05,0.28857946]
[1736581945496,1.07994597,694.39,693.05,0.28857946]
[1736581947401,1.07994597,694.38,693.05,0.28857946]
[1736581955002,1.07994597,694.72,693.05,0.28857946]
[1736581955003,1.07994597,694.33,693.05,0.28857946]
[1736581956201,2.20488968,694.95,693.05,0.28857946]
[1736581956202,1.07994597,694.4,693.05,0.28857946]
[1736581957207,1.07994597,694.39,693.05,0.28857946]
[1736581958208,1.07994597,694.38,693.05,0.28857946]
[1736581959208,1.07994597,694.37,693.05,0.28857946]
[1736581961508,1.07994597,694.36,693.05,0.28857946]
[1736581962404,1.07994597,694.35,693.05,0.28857946]
[1736581964807,1.07994597,694.36,693.05,0.28857946]
[1736581965815,1.07994597,694.27,693.05,0.28857946]
[1736581966808,1.07994597,694.35,693.05,0.28857946]
[1736581968108,1.07994597,694.36,693.05,0.28857946]
[1736581970017,1.07994597,694.35,693.05,0.28857946]
[1736581971816,2.20488968,694.99,693.05,0.28857946]
[1736581971817,1.07994597,694.34,693.05,0.28857946]
[1736581972316,1.07994597,694.36,693.05,0.28857946]
[1736581974017,1.07994597,694.35,693.05,0.28857946]
[1736581974819,1.07994597,694.37,693.05,0.28857946]
[1736581976921,1.07994597,694.35,693.05,0.28857946]
[1736581978819,1.07994597,694.36,693.05,0.28857946]
[1736581979821,1.07994597,694.44,693.05,0.28857946]
[1736581981519,1.07994597,694.45,693.05,0.28857946]
[1736581983126,1.07994597,694.46,693.05,0.28857946]
[1736581984126,1.07994597,694.52,693.05,0.28857946]
[1736581985228,1.07994597,694.54,693.05,0.28857946]
[1736581986129,1.07994597,694.48,693.05,0.28857946]
[1736581987630,1.07994597,694.52,693.05,0.28857946]
[1736581988223,1.07994597,694.53,693.05,0.28857946]
[1736581989328,1.07994597,694.46,693.05,0.28857946]
[1736581990537,1.07994597,694.44,693.05,0.28857946]
[1736581991833,1.07994597,694.46,693.05,0.28857946]
[1736581994037,1.07994597,694.45,693.05,0.28857946]
[1736581995138,1.07994597,694.47,693.05,0.28857946]
[1736581997540,1.07994597,694.42,693.05,0.28857946]
[1736581998435,1.07994597,694.42,693.05,3.48303411]
[1736581999336,1.07994597,694.41,693.05,3.48303411]
[1736582001642,1.07994597,694.37,693.13,1.29451746]
[1736582001843,1.07994597,694.37,693.15,0.28853783]
[1736582004349,1.07994597,694.41,693.17,1.29451746]
[1736582004543,1.07994597,694.41,693.19,0.28852118]
[1736582004949,1.07994597,694.35,693.19,0.28852118]
[1736582005949,1.07994597,694.34,693.19,0.28852118]
[1736582007842,1.07994597,694.35,693.19,0.28852118]
[1736582008544,1.07994597,694.37,693.19,0.28852118]
[1736582009543,1.07994597,694.38,693.19,0.28852118]
[1736582010649,1.07994597,694.37,693.19,0.28852118]
[1736582012054,1.07994597,694.39,693.19,0.28852118]
[1736582013349,1.07994597,694.38,693.19,0.28852118]
[1736582014251,1.07994597,694.57,693.19,0.28852118]
[1736582014252,1.07994597,694.39,693.19,0.28852118]
[1736582015051,1.07994597,694.38,693.19,0.28852118]
[1736582016054,1.07994597,694.4,693.19,0.28852118]
[1736582016952,1.07994597,694.41,693.19,1.58303864]
[1736582017653,1.07994597,694.41,693.19,4.43027759]
[1736582017856,0.89324016,694.79,693.19,4.43027759]
[1736582017857,1.07994597,694.4,693.21,1.29451746]
[1736582018055,1.07994597,694.4,693.23,0.28850453]
[1736582018654,1.07994597,694.41,693.23,0.28850453]
[1736582020954,1.07994597,694.42,693.23,0.28850453]
[1736582021555,1.07004756,694.42,693.23,0.28850453]
[1736582022057,1.07994597,694.65,693.23,0.28850453]
[1736582022859,1.07994597,694.66,693.23,0.28850453]
[1736582026055,1.07994597,694.67,693.23,0.28850453]
[1736582027561,0.26468889,694.66,693.23,0.28850453]
[1736582027755,1.07994597,694.67,693.23,0.28850453]
[1736582027956,0.26468849,694.66,693.23,0.28850453]
[1736582029260,1.07994597,694.64,693.23,0.28850453]
[1736582029563,0.26468849,694.63,693.23,0.28850453]
[1736582030158,1.07994597,694.62,693.23,0.28850453]
[1736582030557,1.07994597,694.63,693.23,0.28850453]
[1736582031863,1.07994597,694.62,693.23,0.28850453]
[1736582034663,1.07994597,694.64,693.23,0.28850453]
[1736582035267,1.07994597,694.63,693.23,0.28850453]
[1736582036368,1.07994597,694.64,693.23,0.28850453]
[1736582037468,1.07994597,694.7,693.23,0.28850453]
[1736582038363,1.97303171,694.79,693.23,0.28850453]
[1736582038364,1.07994597,694.71,693.23,0.28850453]
[1736582040271,1.07994597,694.74,693.23,0.28850453]
[1736582040463,0.26467495,694.73,693.23,0.28850453]
[1736582040968,1.07994597,694.74,693.23,0.28850453]
[1736582041768,0.26467332,694.73,693.23,0.28850453]
[1736582041967,1.07994597,694.74,693.23,0.28850453]
[1736582043470,1.07994597,694.75,693.23,0.28850453]
[1736582044474,1.07994597,694.79,693.23,0.28850453]
[1736582044767,0.26467276,694.78,693.23,0.28850453]
[1736582047374,1.07994597,694.76,693.23,0.28850453]
[1736582048672,0.26467616,694.75,693.23,0.28850453]
[1736582049275,1.07994597,694.76,693.23,0.28850453]
[1736582049476,0.28785261,694.8,693.23,0.28850453]
[1736582049477,1.07994597,694.74,693.23,0.28850453]
[1736582050375,1.34462614,694.73,693.23,0.28850453]
[1736582050574,1.07994597,694.73,693.23,0.28850453]
[1736582051380,1.07994597,694.79,693.23,0.28850453]
[1736582051978,0.26468002,694.78,693.23,0.28850453]
[1736582052172,1.07994597,694.79,693.23,0.28850453]
[1736582052577,1.07994597,694.76,693.23,0.28850453]
[1736582053479,0.28785261,694.8,693.23,0.28850453]
[1736582053873,0.26469224,694.79,693.23,0.28850453]
[1736582054779,1.34464305,694.78,693.23,0.28850453]
[1736582054978,1.07994597,694.78,693.23,0.28850453]
[1736582056580,1.07994597,694.77,693.23,0.28850453]
[1736582057480,1.36779858,694.8,693.23,0.28850453]
[1736582058580,0.28785261,694.8,693.23,0.28850453]
[1736582058780,0.26470479,694.79,693.23,0.28850453]
[1736582059582,1.07994597,694.78,693.23,0.28850453]
[1736582060682,0.26470621,694.77,693.23,0.28850453]
[1736582061584,1.07994597,694.76,693.23,0.28850453]
[1736582061983,0.26470593,694.75,693.23,0.28850453]
[1736582062780,1.07994597,694.67,693.23,0.28850453]
[1736582064087,1.07994597,694.73,693.23,0.28850453]
[1736582064286,0.26473015,694.72,693.23,0.28850453]
[1736582064880,0.26473015,694.71,693.23,0.28850453]
[1736582065186,0.26473015,694.7,693.23,0.28850453]
[1736582065486,1.07994597,694.75,693.23,0.28850453]
[1736582065686,0.28785261,694.8,693.23,0.28850453]
[1736582065687,1.07994597,694.72,693.23,0.28850453]
[1736582065887,0.26473353,694.71,693.23,0.28850453]
[1736582066690,0.26473353,694.7,693.23,0.28850453]
[1736582066887,0.26473353,694.69,693.23,0.28850453]
[1736582067188,0.26473353,694.68,693.23,0.28850453]
[1736582067388,1.07994597,694.73,693.23,0.28850453]
[1736582067588,0.26473191,694.72,693.23,0.28850453]
[1736582068483,0.26473191,694.73,693.23,0.28850453]
[1736582068684,0.26473191,694.72,693.23,0.28850453]
[1736582068886,0.26473191,694.71,693.23,0.28850453]
[1736582069087,0.26473191,694.7,693.23,0.28850453]
[1736582069287,0.26473191,694.69,693.23,0.28850453]
[1736582069585,0.26473191,694.68,693.23,0.28850453]
[1736582069888,1.07994597,694.75,693.23,0.28850453]
[1736582070087,0.26472812,694.74,693.23,0.28850453]
[1736582071992,0.26472366,694.73,693.23,0.28850453]
[1736582072191,0.26472366,694.72,693.23,0.28850453]
[1736582072389,0.26472366,694.71,693.23,0.28850453]
[1736582072591,0.26472366,694.7,693.23,0.28850453]
[1736582072789,0.26472366,694.69,693.23,0.28850453]
[1736582072986,0.26472366,694.68,693.23,0.28850453]
[1736582073189,1.07994597,694.77,693.23,0.28850453]
[1736582073388,0.26472263,694.76,693.23,0.28850453]
[1736582073786,0.28785261,694.8,693.23,0.28850453]
[1736582073787,0.26472205,694.75,693.23,0.28850453]
[1736582073990,0.26472205,694.74,693.23,0.28850453]
[1736582074191,0.2647219,694.73,693.23,0.28850453]
[1736582074490,0.2647219,694.72,693.23,0.28850453]
[1736582074691,0.2647219,694.71,693.23,0.28850453]
[1736582074892,0.2647219,694.7,693.23,0.28850453]
[1736582075093,1.07994597,694.77,693.23,0.28850453]
[1736582075392,0.26471574,694.76,693.23,0.28850453]
[1736582075994,0.26471574,694.75,693.23,0.28850453]
[1736582076292,0.26471574,694.74,693.23,0.28850453]
[1736582076593,1.07994597,694.79,693.23,0.28850453]
[1736582076594,0.26471574,694.73,693.23,0.28850453]
[1736582076892,1.07994597,694.79,693.23,0.28850453]
[1736582077087,0.26470682,694.78,693.23,0.28850453]
[1736582077993,0.26470682,694.77,693.23,0.28850453]
[1736582078186,0.26470682,694.76,693.23,0.28850453]
[1736582078387,0.28785261,694.8,693.23,0.28850453]
[1736582078388,0.26470682,694.75,693.23,0.28850453]
[1736582078591,0.26470682,694.74,693.23,0.28850453]
[1736582078790,0.26470682,694.73,693.23,0.28850453]
[1736582078991,0.26470682,694.72,693.23,0.28850453]
[1736582079191,0.28785261,694.8,693.23,0.28850453]
[1736582079391,1.34465453,694.79,693.23,0.28850453]
[1736582079591,0.2647092,694.78,693.23,0.28850453]
[1736582080495,1.07994597,694.79,693.23,0.28850453]
[1736582081290,0.26468094,694.78,693.23,0.28850453]
[1736582081801,0.26468094,694.77,693.23,0.28850453]
[1736582081999,0.26468094,694.76,693.23,0.28850453]
[1736582082199,0.28785261,694.8,693.23,0.28850453]
[1736582082395,0.26468081,694.79,693.23,0.28850453]
[1736582083594,0.28785261,694.8,693.23,0.28850453]
[1736582086305,0.26469337,694.79,693.23,0.28850453]
[1736582087906,0.26469466,694.78,693.23,0.28850453]
[1736582088108,0.28785261,694.8,693.23,0.28850453]
[1736582088402,0.26469466,694.79,693.23,0.28850453]
[1736582088608,0.28785261,694.8,693.23,0.28850453]
[1736582088908,0.26469423,694.79,693.23,0.28850453]
[1736582092212,1.07994597,694.77,693.23,0.28850453]
[1736582092409,0.26469423,694.76,693.23,0.28850453]
[1736582093815,0.26469423,694.75,693.23,0.28850453]
[1736582094115,1.07994597,694.78,693.23,0.28850453]
[1736582094316,1.07994597,694.66,693.23,0.28850453]
[1736582095314,0.28785261,694.8,693.23,0.28850453]
[1736582103916,0.26470661,694.79,693.23,0.28850453]
[1736582104511,0.26470176,694.78,693.23,0.28850453]
[1736582104714,0.26470176,694.77,693.23,0.28850453]
[1736582104917,0.26470176,694.76,693.23,0.28850453]
[1736582105117,0.26470176,694.75,693.23,0.28850453]
[1736582106018,1.34464773,694.75,693.23,0.28850453]
[1736582106215,0.26470176,694.74,693.23,0.28850453]
[1736582106519,1.07994597,694.75,693.23,0.28850453]
[1736582106717,0.2647072,694.74,693.23,0.28850453]
[1736582106912,1.34465317,694.74,693.23,0.28850453]
[1736582107119,1.07994597,694.74,693.23,0.28850453]
[1736582107514,0.26470713,694.73,693.23,0.28850453]
[1736582108012,0.26470713,694.72,693.23,0.28850453]
[1736582108217,0.26470713,694.71,693.23,0.28850453]
[1736582108414,0.26470713,694.7,693.23,0.28850453]
[1736582108617,0.26470713,694.69,693.23,0.28850453]
[1736582108819,0.26470713,694.68,693.23,0.28850453]
[1736582109022,0.26470713,694.67,693.23,0.28850453]
[1736582109222,1.07994597,694.67,693.23,0.28850453]
[1736582109419,0.2647264,694.66,693.23,0.28850453]
[1736582110223,1.07994597,694.63,693.23,0.28850453]
[1736582110421,0.2647264,694.62,693.23,0.28850453]
[1736582111022,1.07994597,694.61,693.23,0.28850453]
[1736582111720,0.26474198,694.6,693.23,0.28850453]
[1736582112023,1.07994597,694.63,693.23,0.28850453]
[1736582112223,0.26474077,694.62,693.23,0.28850453]
[1736582112618,1.34468674,694.62,693.23,0.28850453]
[1736582112820,0.26474501,694.61,693.23,0.28850453]
[1736582114724,1.07994597,694.64,693.23,0.28850453]
[1736582115022,0.2647393,694.63,693.23,0.28850453]
[1736582115725,0.2647476,694.62,693.23,0.28850453]
[1736582116031,0.2647476,694.61,693.23,0.28850453]
[1736582116327,0.2647476,694.6,693.23,0.28850453]
[1736582116526,0.2647476,694.59,693.23,0.28850453]
[1736582116827,0.2647476,694.58,693.23,0.28850453]
[1736582117028,0.26476381,694.57,693.23,0.28850453]
[1736582117226,1.07994597,694.65,693.23,0.28850453]
[1736582117426,0.26476555,694.64,693.23,0.28850453]
[1736582117729,0.26476635,694.63,693.23,0.28850453]
[1736582118525,1.34471232,694.63,693.23,0.28850453]
[1736582118728,0.26476635,694.62,693.23,0.28850453]
[1736582119630,1.34471232,694.62,693.23,0.28850453]
[1736582119832,0.26476635,694.61,693.23,0.28850453]
[1736582120329,0.26477156,694.6,693.23,0.28850453]
[1736582120525,0.26477156,694.59,693.23,0.28850453]
[1736582120722,1.07994597,694.64,693.23,0.28850453]
[1736582121329,0.28785261,694.8,693.23,0.28850453]
[1736582121524,0.26476841,694.79,693.23,0.28850453]
[1736582121723,0.2878609,694.78,693.23,0.28850453]
[1736582121929,0.26476841,694.77,693.23,0.28850453]
[1736582122132,0.28786919,694.76,693.23,0.28850453]
[1736582122330,0.26476841,694.75,693.23,0.28850453]
[1736582122632,0.28787747,694.74,693.23,0.28850453]
[1736582122833,0.26476841,694.73,693.23,0.28850453]
[1736582123033,0.28788576,694.72,693.23,0.28850453]
[1736582123235,0.26477296,694.71,693.23,0.28850453]
[1736582123428,0.28789405,694.7,693.23,0.28850453]
[1736582123631,0.26477296,694.69,693.23,0.28850453]
[1736582123828,0.28790234,694.68,693.23,0.28850453]
[1736582133842,0.26476648,694.67,693.23,0.28850453]
[1736582134243,0.26476634,694.66,693.23,0.28850453]
[1736582134447,0.26476634,694.65,693.23,0.28850453]
[1736582134647,0.26476634,694.64,693.23,0.28850453]
[1736582134849,0.26476634,694.63,693.23,0.28850453]
[1736582135048,0.26476634,694.62,693.23,0.28850453]
[1736582135346,0.26476634,694.61,693.23,0.28850453]
[1736582135547,0.26476634,694.6,693.23,0.28850453]
[1736582135748,0.26476634,694.59,693.23,0.28850453]
[1736582136046,0.28790234,694.68,693.23,0.28850453]
[1736582136349,1.07994597,694.66,693.23,0.28850453]
[1736582136547,0.26477418,694.65,693.23,0.28850453]
[1736582137445,0.26477418,694.64,693.23,0.28850453]
[1736582137646,0.26477418,694.63,693.23,0.28850453]
[1736582137845,0.26477418,694.62,693.23,0.28850453]
[1736582138046,0.26477418,694.61,693.23,0.28850453]
[1736582138244,0.26477418,694.6,693.23,0.28850453]
[1736582138443,0.26477418,694.59,693.23,0.28850453]
[1736582138643,0.26477418,694.58,693.23,0.28850453]
[1736582138846,0.26477418,694.57,693.23,0.28850453]
[1736582139041,0.26477418,694.56,693.23,0.28850453]
[1736582139248,0.26477418,694.55,693.23,0.28850453]
[1736582139448,1.07994597,694.67,693.23,0.28850453]
[1736582139862,0.26476857,694.66,693.23,0.28850453]
[1736582140149,1.07994597,694.65,693.23,0.28850453]
[1736582140352,0.26476857,694.64,693.23,0.28850453]
[1736582141149,0.26476857,694.63,693.23,0.28850453]
[1736582141345,0.26476857,694.62,693.23,0.28850453]
[1736582141552,1.36784831,694.68,693.23,0.28850453]
[1736582141753,0.26473397,694.67,693.23,0.28850453]
[1736582141952,1.0779729,694.47,693.23,0.28850453]
[1736582142854,1.0779729,694.49,693.23,0.28850453]
[1736582144556,1.0779729,694.5,693.23,0.28850453]
[1736582146452,0.28790234,694.68,693.23,0.28850453]
[1736582146453,1.0779729,694.43,693.23,0.28850453]
[1736582147757,1.0779729,694.48,693.23,0.28850453]
[1736582148559,1.0779729,694.61,693.23,0.28850453]
[1736582149554,1.0779729,694.66,693.23,0.28850453]
[1736582150360,1.36587524,694.68,693.23,0.28850453]
[1736582151155,0.28790234,694.68,693.23,0.28850453]
[1736582151956,1.0779729,694.67,693.23,0.28850453]
[1736582152959,1.36587524,694.68,693.23,0.28850453]
[1736582153562,0.28790234,694.68,693.23,0.28850453]
[1736582168773,1.0779729,694.82,693.23,0.28850453]
[1736582168974,1.0779729,694.81,693.23,0.28850453]
[1736582169777,1.0779729,694.84,693.23,0.28850453]
[1736582170779,1.0779729,694.85,693.23,0.28850453]
[1736582173384,1.0779729,694.84,693.23,0.28850453]
[1736582174381,1.0779729,694.83,693.23,0.28850453]
[1736582175285,1.0779729,694.85,693.23,0.28850453]
[1736582176185,1.0779729,694.86,693.23,0.28850453]
[1736582177388,1.0779729,694.87,693.23,0.28850453]
[1736582178291,1.0779729,694.84,693.23,0.28850453]
[1736582179189,1.0779729,694.85,693.23,0.28850453]
[1736582181283,1.0779729,694.84,693.23,0.28850453]
[1736582182289,1.0779729,694.82,693.23,0.28850453]
[1736582184291,1.0779729,694.81,693.23,0.28850453]
[1736582185291,1.0779729,694.75,693.23,1.58302199]
[1736582186086,1.0779729,694.83,693.23,0.28850453]
[1736582186986,1.0779729,694.84,693.23,0.28850453]
[1736582187992,1.0779729,694.83,693.23,0.28850453]
[1736582189195,1.0779729,694.85,693.23,0.28850453]
[1736582189992,1.0779729,694.88,693.23,0.28850453]
[1736582190899,1.0779729,694.9,693.23,0.28850453]
[1736582192295,2.18620793,695.44,693.23,0.28850453]
[1736582192296,1.0779729,694.92,693.23,0.28850453]
[1736582193294,1.0779729,694.89,693.23,0.28850453]
[1736582195302,1.0779729,694.88,693.23,0.28850453]
[1736582195897,1.0779729,694.94,693.23,0.28850453]
[1736582196906,1.0779729,694.93,693.23,0.28850453]
[1736582198807,1.0779729,694.92,693.23,0.28850453]
[1736582199902,1.0779729,694.88,693.23,0.28850453]
[1736582201303,1.0779729,694.87,693.23,0.28850453]
[1736582203309,1.0779729,694.85,693.23,0.28850453]
[1736582204311,1.0779729,694.88,693.26,1.29451746]
[1736582204506,1.0779729,694.88,693.28,0.28848372]
[1736582205508,1.0779729,694.89,693.28,0.28848372]
[1736582206613,1.0779729,694.82,693.44,1.29451746]
[1736582206816,1.0779729,694.82,693.46,0.28840884]
[1736582207212,1.0779729,694.88,693.46,0.28840884]
[1736582216420,1.0779729,694.8,693.46,0.28840884]
[1736582217321,1.0779729,694.88,693.46,0.28840884]
[1736582219425,1.0779729,695.2,693.46,0.28840884]
[1736582220019,1.0779729,695.15,693.46,0.28840884]
[1736582220922,1.0779729,695.14,693.46,0.28840884]
[1736582224023,1.0779729,695.12,693.46,0.28840884]
[1736582225028,1.0779729,695.1,693.46,0.28840884]
[1736582227429,0.72931103,696.08,693.46,0.28840884]
[1736582227430,1.0779729,695.11,693.46,0.28840884]
[1736582229532,1.0779729,694.95,693.46,0.28840884]
[1736582231833,1.0779729,694.91,693.46,0.28840884]
[1736582233038,1.0779729,694.9,693.46,0.28840884]
[1736582233931,1.0779729,694.94,693.46,0.28840884]
[1736582235035,1.0779729,694.96,693.46,0.28840884]
[1736582236938,1.0779729,694.9,693.46,0.28840884]
[1736582237840,1.0779729,694.87,693.46,0.28840884]
[1736582238839,1.0779729,694.85,693.46,0.28840884]
[1736582239537,1.0779729,694.86,693.46,0.28840884]
[1736582241840,1.0779729,694.85,693.46,0.28840884]
[1736582243841,1.0779729,694.81,693.46,0.28840884]
[1736582244938,1.0779729,694.83,693.46,0.28840884]
[1736582248043,1.0779729,694.86,693.46,0.28840884]
[1736582249243,1.0779729,694.87,693.46,0.28840884]
[1736582249842,1.0779729,694.86,693.46,0.28840884]
[1736582250746,1.0779729,694.87,693.46,0.28840884]
[1736582251845,1.0779729,694.86,693.46,0.28840884]
[1736582252947,1.0779729,694.84,693.46,0.28840884]
[1736582253548,1.0779729,694.85,693.46,0.28840884]
[1736582254143,1.0779729,694.8,693.46,0.28840884]
[1736582255050,1.0779729,694.83,693.46,0.28840884]
[1736582258251,1.0779729,694.81,693.46,0.28840884]
[1736582258846,0.89359986,695.4,693.46,0.28840884]
[1736582258847,1.0779729,694.8,693.46,0.28840884]
[1736582260353,1.0779729,694.81,693.46,0.28840884]
[1736582263053,1.0779729,694.8,693.46,0.28840884]
[1736582266055,1.0779729,694.84,693.46,0.28840884]
[1736582267461,1.0779729,694.83,693.46,0.28840884]
[1736582268264,1.0779729,694.84,693.46,0.28840884]
[1736582273259,1.0779729,694.83,693.46,0.28840884]
[1736582275369,1.0779729,694.71,693.6,1.29451746]
[1736582275568,1.0779729,694.71,693.62,0.28834232]
[1736582276170,1.0779729,694.81,693.62,0.28834232]
[1736582278164,1.0779729,694.8,693.62,0.28834232]
[1736582280468,0.89359986,695.38,693.62,0.28834232]
[1736582280469,1.0779729,694.79,693.62,0.28834232]
[1736582281074,1.0779729,694.8,693.62,0.28834232]
[1736582284073,1.0779729,694.93,693.62,0.28834232]
[1736582284976,1.0779729,694.98,693.62,0.28834232]
[1736582285978,1.0779729,694.96,693.62,0.28834232]
[1736582286876,1.0779729,695.0,693.62,0.28834232]
[1736582289385,1.0779729,695.02,693.62,0.28834232]
[1736582291175,1.0779729,695.01,693.62,0.28834232]
[1736582292175,1.0779729,695.02,693.62,0.28834232]
[1736582293182,1.0779729,695.03,693.62,0.28834232]
[1736582294983,1.0779729,695.02,693.62,0.28834232]
[1736582295983,1.0779729,694.97,693.62,0.28834232]
[1736582297484,0.89359986,695.38,693.62,0.28834232]
[1736582297485,1.0779729,694.98,693.62,0.28834232]
[1736582299480,1.0779729,694.97,693.62,0.28834232]
[1736582302386,1.0779729,694.96,693.62,0.28834232]
[1736582304385,1.0779729,694.97,693.62,0.28834232]
[1736582305289,1.0779729,694.98,693.62,0.28834232]
[1736582306082,1.0779729,694.97,693.62,0.28834232]
[1736582307391,1.0779729,694.96,693.62,0.28834232]
[1736582308390,1.0779729,694.98,693.62,0.28834232]
[1736582310091,1.0779729,695.01,693.62,0.28834232]
[1736582310994,1.0779729,695.02,693.62,0.28834232]
[1736582312394,1.0779729,695.03,693.62,0.28834232]
[1736582314193,1.0779729,694.98,693.62,0.28834232]
[1736582315396,1.0779729,694.95,693.62,0.28834232]
[1736582316292,0.89359986,695.38,693.62,0.28834232]
[1736582316293,1.0779729,694.93,693.62,0.28834232]
[1736582317191,1.0779729,694.92,693.62,0.28834232]
[1736582318197,1.0779729,694.89,693.63,1.29451746]
[1736582318398,1.0779729,694.89,693.65,0.28832984]
[1736582319693,1.0779729,694.88,693.65,1.5828473]
[1736582323999,1.0779729,694.88,693.65,4.43008625]
[1736582324200,1.0779729,694.89,693.66,4.47971189]
[1736582324501,1.0779729,694.89,693.68,0.28831737]
[1736582325602,1.0779729,694.89,693.68,3.4735118]
[1736582326099,1.0779729,694.9,693.68,3.4735118]
[1736582326305,1.0779729,694.9,693.68,0.28831737]
[1736582327707,1.0779729,694.9,693.68,3.4735118]
[1736582328604,1.07994597,695.08,693.68,3.4735118]
[1736582328605,1.0779729,694.91,693.68,3.4735118]
[1736582329604,1.0779729,694.91,693.68,3.47293972]
[1736582329803,1.0779729,694.98,693.68,3.47293972]
[1736582330503,1.0779729,694.98,693.68,0.28831737]
[1736582330708,1.0779729,694.96,693.68,0.28831737]
[1736582333814,1.0779729,694.97,693.68,0.28831737]
[1736582334615,1.0779729,694.95,693.68,0.28831737]
[1736582335614,1.0779729,694.93,693.68,0.28831737]
[1736582336519,1.0779729,694.92,693.68,0.28831737]
[1736582337619,1.0779729,694.93,693.68,0.28831737]
[1736582339825,1.0779729,694.88,693.68,1.58283483]
[1736582341020,1.0779729,694.89,693.68,0.28831737]
[1736582342926,1.0779729,694.88,693.68,1.58283483]
[1736582343622,1.0779729,694.88,693.69,1.29451746]
[1736582343825,1.0779729,694.88,693.71,0.28830491]
[1736582344823,1.0779729,694.9,693.72,1.29451746]
[1736582345024,1.0779729,694.9,693.74,0.28829244]
[1736582345627,1.0779729,694.92,693.74,1.5828099]
[1736582346526,1.0779729,694.91,693.74,0.28829244]
[1736582348630,1.0779729,694.92,693.74,0.28829244]
[1736582350425,1.07994597,695.11,693.74,0.28829244]
[1736582350426,1.0779729,694.93,693.74,0.28829244]
[1736582351029,1.0779729,694.93,693.74,3.47291479]
[1736582351230,1.0779729,694.94,693.74,3.47291479]
[1736582354936,1.0779729,694.94,693.74,0.28829244]
[1736582355336,1.0779729,694.93,693.74,0.28829244]
[1736582356438,1.0779729,694.94,693.74,0.28829244]
[1736582362440,1.0779729,694.95,693.74,0.28829244]
[1736582366438,1.0779729,694.94,693.74,0.28829244]
[1736582367640,0.89359986,695.37,693.74,0.28829244]
[1736582367641,1.0779729,694.98,693.74,0.28829244]
[1736582368536,1.0779729,694.97,693.74,0.28829244]
[1736582370542,1.07994597,695.26,693.74,0.28829244]
[1736582370543,1.0779729,694.96,693.74,0.28829244]
[1736582371439,1.0779729,694.95,693.74,0.28829244]
[1736582372639,1.0779729,694.94,693.74,0.28829244]
[1736582374345,1.0779729,694.95,693.74,0.28829244]
[1736582375041,1.0779729,694.97,693.74,0.28829244]
[1736582376146,1.0779729,694.95,693.74,0.28829244]
[1736582376739,1.0779729,694.93,693.77,1.29451746]
[1736582376944,1.0779729,694.93,693.79,0.28827166]
[1736582379346,1.0779729,694.92,693.79,0.28827166]
[1736582380145,1.0779729,694.93,693.79,0.28827166]
[1736582381047,1.0779729,694.92,693.79,0.28827166]
[1736582381546,1.0779729,694.92,693.79,3.47289401]
[1736582382143,1.0779729,694.93,693.79,3.47289401]
[1736582382842,1.0779729,694.93,693.79,6.32013296]
[1736582383045,1.0779729,694.93,693.8,3.18462235]
[1736582383239,1.0779729,694.93,693.82,0.2882592]
[1736582384848,1.07994597,695.19,693.82,0.2882592]
[1736582384849,1.0779729,694.92,693.82,0.2882592]
[1736582386145,1.0779729,694.93,693.82,0.2882592]
[1736582387250,0.89359986,695.37,693.82,0.2882592]
[1736582387251,1.0779729,694.94,693.82,0.2882592]
[1736582388150,1.0779729,694.93,693.82,0.2882592]
[1736582389553,1.0779729,694.95,693.82,0.2882592]
[1736582391656,1.0779729,694.94,693.82,0.2882592]
[1736582392552,0.89359986,695.37,693.82,0.2882592]
[1736582392553,1.0779729,695.42,693.82,0.2882592]
[1736582393657,1.0779729,695.47,693.82,0.2882592]
[1736582394858,1.0779729,695.5,693.82,0.2882592]
[1736582396156,1.0779729,695.54,693.82,0.2882592]
[1736582397155,1.0779729,695.56,693.82,0.2882592]
[1736582398157,1.0779729,695.53,693.82,0.2882592]
[1736582399455,1.0779729,695.5,693.82,0.2882592]
[1736582401061,1.07994597,695.97,693.82,0.2882592]
[1736582403655,1.07994597,695.91,693.82,0.2882592]
[1736582406064,2.32271245,698.19,693.82,0.2882592]
[1736582406065,1.0757016,695.29,693.82,0.2882592]
[1736582406963,1.0757016,695.27,693.82,0.2882592]